fUSD/lending_fUSD_20260517
["ID","MTS","AMOUNT","RATE_DAILY","PERIOD"]
[422470021,1778971841000,-500.0,0.00024384,2]
[422470017,1778971841000,-514.360818,0.00024384,2]
[422470008,1778971841000,-540.0,0.00024384,2]
[422470015,1778971841000,-547.93553405,0.00024384,2]
[422470012,1778971841000,-503.0,0.00024384,2]
[422470014,1778971841000,-503.0,0.00024384,2]
[422470013,1778971841000,-1890.083746,0.00024384,2]
[422470010,1778971841000,-1875.0,0.00024384,2]
[422470011,1778971841000,-540.0,0.00024384,2]
[422470020,1778971841000,-225.48548331,0.00024384,2]
[422470019,1778971841000,-500.0,0.00024384,2]
[422470016,1778971841000,-503.0,0.00024384,2]
[422470096,1778971842000,-223.16459096,0.00025,2]
[422470098,1778971842000,-230.49546431,0.00025397,2]
[422470099,1778971842000,-978.40834428,0.00025397,2]
[422470097,1778971842000,-465.51149616,0.000253,2]
[422470095,1778971842000,-179.7,0.00025,2]
[422470084,1778971842000,-1371.44500597,0.000247,2]
[422470089,1778971842000,-207.0,0.00025,2]
[422470090,1778971842000,-173.24741556,0.00025,2]
[422470088,1778971842000,-453.0,0.00025,2]
[422470087,1778971842000,-672.0,0.00025,2]
[422470085,1778971842000,-166.66,0.00024964,2]
[422470100,1778971842000,-1000.0,0.00025405,2]
[422470092,1778971842000,-465.51149616,0.00025,2]
[422470106,1778971842000,-817.0,0.00025695,2]
[422470117,1778971842000,-230.02,0.00026216,2]
[422470101,1778971842000,-1000.0,0.00025405,2]
[422470102,1778971842000,-5000.0,0.00025427,2]
[422470103,1778971842000,-465.51149616,0.000255,2]
[422470104,1778971842000,-1071.34880704,0.00025571,2]
[422470108,1778971842000,-2912.09,0.00025786,2]
[422470119,1778971842000,-1147.32,0.000263,7]
[422470120,1778971842000,-230.49546431,0.00026397,2]
[422470110,1778971842000,-1675.19,0.00025786,2]
[422470109,1778971842000,-462.3,0.00025786,2]
[422470107,1778971842000,-166.66,0.00025762,2]
[422470111,1778971842000,-3397.24,0.00025786,2]
[422470112,1778971842000,-465.51149616,0.000258,2]
[422470113,1778971842000,-207.51516402,0.00025811,7]
[422470105,1778971842000,-9527.3414012,0.00025637,2]
[422470082,1778971842000,-964.0,0.00024658,2]
[422470056,1778971842000,-1147.32,0.000246,7]
[422470086,1778971842000,-579.96426354,0.00025,2]
[422470057,1778971842000,-1000.0,0.00024658,2]
[422470059,1778971842000,-1071.34880704,0.00024658,2]
[422470069,1778971842000,-964.0,0.00024658,2]
[422470058,1778971842000,-679.41,0.00024658,2]
[422470060,1778971842000,-964.0,0.00024658,2]
[422470061,1778971842000,-964.0,0.00024658,2]
[422470068,1778971842000,-964.0,0.00024658,2]
[422470065,1778971842000,-964.0,0.00024658,2]
[422470066,1778971842000,-964.0,0.00024658,2]
[422470062,1778971842000,-964.0,0.00024658,2]
[422470064,1778971842000,-964.0,0.00024658,2]
[422470063,1778971842000,-964.0,0.00024658,2]
[422470067,1778971842000,-964.0,0.00024658,2]
[422470091,1778971842000,-1371.44500597,0.00025,2]
[422470070,1778971842000,-964.0,0.00024658,2]
[422470074,1778971842000,-964.0,0.00024658,2]
[422470075,1778971842000,-964.0,0.00024658,2]
[422470073,1778971842000,-964.0,0.00024658,2]
[422470071,1778971842000,-964.0,0.00024658,2]
[422470080,1778971842000,-964.0,0.00024658,2]
[422470081,1778971842000,-964.0,0.00024658,2]
[422470078,1778971842000,-964.0,0.00024658,2]
[422470076,1778971842000,-964.0,0.00024658,2]
[422470077,1778971842000,-964.0,0.00024658,2]
[422470079,1778971842000,-964.0,0.00024658,2]
[422470083,1778971842000,-976.41025337,0.00024658,2]
[422470093,1778971842000,-421.27724586,0.00025,2]
[422470094,1778971842000,-179.7,0.00025,2]
[422470072,1778971842000,-964.0,0.00024658,2]
[422470116,1778971842000,-465.51149616,0.00026,2]
[422470118,1778971842000,-914.9,0.00026296,2]
[422470114,1778971842000,-1000.0,0.00025915,7]
[422470148,1778971842000,-1465.21,0.00027397,2]
[422470150,1778971842000,-12964.86,0.00027397,10]
[422470151,1778971842000,-153.66364287,0.00027397,7]
[422470155,1778971842000,-166.77041051,0.00027397,30]
[422470159,1778971842000,-535.0,0.00027671,2]
[422470169,1778971842000,-166.66,0.00028155,2]
[422470170,1778971842000,-535.0,0.00028205,3]
[422470172,1778971842000,-437.4,0.00028344,2]
[422470171,1778971842000,-914.9,0.00028267,2]
[422470173,1778971842000,-450.0,0.00028344,2]
[422470158,1778971842000,-9246.08,0.000274,14]
[422470162,1778971842000,-600.0,0.00028,2]
[422470165,1778971842000,-208.44072055,0.00028,7]
[422470154,1778971842000,-150.0,0.00027397,2]
[422470160,1778971842000,-726.84460578,0.0002772,2]
[422470167,1778971842000,-186.4,0.00028,2]
[422470163,1778971842000,-53586.41665203,0.00028,2]
[422470161,1778971842000,-500.0,0.000278,7]
[422470175,1778971842000,-1000.0,0.00028528,2]
[422470174,1778971842000,-9493.5072077,0.00028363,21]
[422470176,1778971842000,-516.86,0.0002863,2]
[422470178,1778971842000,-2970.88,0.0002863,2]
[422470182,1778971842000,-516.27,0.0002863,2]
[422470179,1778971842000,-1408.35,0.0002863,2]
[422470180,1778971842000,-1402.73,0.0002863,2]
[422470177,1778971842000,-374.05,0.0002863,2]
[422470183,1778971842000,-2959.13,0.0002863,2]
[422470181,1778971842000,-372.97,0.0002863,2]
[422470164,1778971842000,-208.44072055,0.00028,10]
[422470156,1778971842000,-456.6,0.000274,7]
[422470115,1778971842000,-550.0,0.00026,2]
[422470152,1778971842000,-652.27222952,0.00027397,7]
[422470121,1778971842000,-978.40834428,0.00026397,2]
[422470124,1778971842000,-166.66,0.0002656,2]
[422470123,1778971842000,-817.0,0.00026517,2]
[422470132,1778971842000,-215.0,0.00027171,2]
[422470122,1778971842000,-1071.34880704,0.00026484,2]
[422470125,1778971842000,-500.0,0.00026584,90]
[422470126,1778971842000,-500.0,0.00026584,90]
[422470127,1778971842000,-2917.0,0.000271,7]
[422470157,1778971842000,-1078.25,0.000274,7]
[422470133,1778971842000,-445.33821253,0.00027178,2]
[422470129,1778971842000,-535.0,0.00027137,2]
[422470128,1778971842000,-150.0,0.00027123,20]
[422470131,1778971842000,-150.0,0.00027171,2]
[422470135,1778971842000,-166.66,0.00027358,2]
[422470130,1778971842000,-279.0,0.00027171,2]
[422470137,1778971842000,-652.27222952,0.00027397,7]
[422470134,1778971842000,-231.0,0.00027339,2]
[422470149,1778971842000,-679.41,0.00027397,2]
[422470147,1778971842000,-300.0,0.00027397,2]
[422470146,1778971842000,-9493.50720769,0.00027397,21]
[422470142,1778971842000,-239.9102584,0.00027397,2]
[422470140,1778971842000,-500.0,0.00027397,2]
[422470153,1778971842000,-163.0680574,0.00027397,7]
[422470143,1778971842000,-150.0,0.00027397,2]
[422470145,1778971842000,-215.03962261,0.00027397,10]
[422470141,1778971842000,-500.0,0.00027397,2]
[422470139,1778971842000,-833.26872616,0.00027397,30]
[422470136,1778971842000,-153.66364287,0.00027397,7]
[422470138,1778971842000,-1071.34880704,0.00027397,2]
[422470144,1778971842000,-1500.0,0.00027397,2]
[422470236,1778971843000,-2959.13,0.00028788,30]
[422470237,1778971843000,-516.86,0.0002882,2]
[422470235,1778971843000,-516.27,0.00028788,30]
[422470225,1778971843000,-372.97,0.00028756,7]
[422470221,1778971843000,-2970.88,0.00028756,7]
[422470217,1778971843000,-535.0,0.00028739,3]
[422470216,1778971843000,-2959.13,0.00028725,2]
[422470218,1778971843000,-28157.1272,0.00028752,2]
[422470219,1778971843000,-2000.0,0.00028752,2]
[422470211,1778971843000,-2970.88,0.00028725,2]
[422470214,1778971843000,-372.97,0.00028725,2]
[422470215,1778971843000,-516.27,0.00028725,2]
[422470227,1778971843000,-2959.13,0.00028756,7]
[422470248,1778971843000,-1408.35,0.00028852,7]
[422470226,1778971843000,-516.27,0.00028756,7]
[422470234,1778971843000,-372.97,0.00028788,30]
[422470229,1778971843000,-516.86,0.00028788,30]
[422470231,1778971843000,-374.05,0.00028788,30]
[422470232,1778971843000,-1408.35,0.00028788,30]
[422470230,1778971843000,-2970.88,0.00028788,30]
[422470228,1778971843000,-833.26872616,0.00028767,30]
[422470233,1778971843000,-1402.73,0.00028788,30]
[422470238,1778971843000,-374.05,0.0002882,2]
[422470242,1778971843000,-372.97,0.0002882,2]
[422470245,1778971843000,-516.86,0.00028852,7]
[422470240,1778971843000,-1408.35,0.0002882,2]
[422470246,1778971843000,-374.05,0.00028852,7]
[422470222,1778971843000,-374.05,0.00028756,7]
[422470224,1778971843000,-1402.73,0.00028756,7]
[422470210,1778971843000,-374.05,0.00028725,2]
[422470208,1778971843000,-1147.32,0.000287,7]
[422470220,1778971843000,-516.86,0.00028756,7]
[422470249,1778971843000,-1402.73,0.00028852,7]
[422470186,1778971843000,-1360.657,0.00028659,2]
[422470185,1778971843000,-3543.0,0.00028659,2]
[422470187,1778971843000,-926.0,0.00028659,2]
[422470184,1778971843000,-756.128,0.00028659,2]
[422470191,1778971843000,-930.0,0.00028659,2]
[422470189,1778971843000,-1281.822,0.00028659,2]
[422470188,1778971843000,-284.625,0.00028659,2]
[422470190,1778971843000,-417.0,0.00028659,2]
[422470192,1778971843000,-516.86,0.00028661,7]
[422470194,1778971843000,-2970.88,0.00028661,7]
[422470193,1778971843000,-374.05,0.00028661,7]
[422470195,1778971843000,-1408.35,0.00028661,7]
[422470213,1778971843000,-1402.73,0.00028725,2]
[422470206,1778971843000,-516.27,0.00028693,30]
[422470205,1778971843000,-372.97,0.00028693,30]
[422470209,1778971843000,-516.86,0.00028725,2]
[422470207,1778971843000,-2959.13,0.00028693,30]
[422470196,1778971843000,-1402.73,0.00028661,7]
[422470199,1778971843000,-2959.13,0.00028661,7]
[422470198,1778971843000,-516.27,0.00028661,7]
[422470200,1778971843000,-516.86,0.00028693,30]
[422470204,1778971843000,-1402.73,0.00028693,30]
[422470202,1778971843000,-2970.88,0.00028693,30]
[422470201,1778971843000,-374.05,0.00028693,30]
[422470203,1778971843000,-1408.35,0.00028693,30]
[422470223,1778971843000,-1408.35,0.00028756,7]
[422470212,1778971843000,-1408.35,0.00028725,2]
[422470197,1778971843000,-372.97,0.00028661,7]
[422470239,1778971843000,-2970.88,0.0002882,2]
[422470250,1778971843000,-372.97,0.00028852,7]
[422470243,1778971843000,-516.27,0.0002882,2]
[422470279,1778971843000,-374.05,0.00028979,30]
[422470284,1778971843000,-516.27,0.00028979,30]
[422470281,1778971843000,-1408.35,0.00028979,30]
[422470280,1778971843000,-2970.88,0.00028979,30]
[422470282,1778971843000,-1402.73,0.00028979,30]
[422470283,1778971843000,-372.97,0.00028979,30]
[422470286,1778971843000,-208.44072055,0.00029,10]
[422470285,1778971843000,-2959.13,0.00028979,30]
[422470289,1778971843000,-2970.88,0.0002901,2]
[422470291,1778971843000,-1402.73,0.0002901,2]
[422470292,1778971843000,-372.97,0.0002901,2]
[422470293,1778971843000,-516.27,0.0002901,2]
[422470294,1778971843000,-2959.13,0.0002901,2]
[422470278,1778971843000,-516.86,0.00028979,30]
[422470290,1778971843000,-1408.35,0.0002901,2]
[422470295,1778971843000,-2000.0,0.00029034,2]
[422470296,1778971843000,-2000.0,0.00029034,2]
[422470299,1778971843000,-2000.0,0.00029034,2]
[422470297,1778971843000,-2000.0,0.00029034,2]
[422470298,1778971843000,-2000.0,0.00029034,2]
[422470302,1778971843000,-2000.0,0.00029034,2]
[422470301,1778971843000,-2000.0,0.00029034,2]
[422470303,1778971843000,-2000.0,0.00029034,2]
[422470241,1778971843000,-1402.73,0.0002882,2]
[422470304,1778971843000,-2000.0,0.00029034,2]
[422470308,1778971843000,-374.05,0.00029042,7]
[422470306,1778971843000,-207.51516402,0.00029042,7]
[422470305,1778971843000,-500.0,0.00029041,2]
[422470300,1778971843000,-2000.0,0.00029034,2]
[422470287,1778971843000,-516.86,0.0002901,2]
[422470307,1778971843000,-516.86,0.00029042,7]
[422470276,1778971843000,-2959.13,0.00028947,7]
[422470247,1778971843000,-2970.88,0.00028852,7]
[422470244,1778971843000,-2959.13,0.0002882,2]
[422470252,1778971843000,-2959.13,0.00028852,7]
[422470262,1778971843000,-374.05,0.00028915,2]
[422470258,1778971843000,-372.97,0.00028883,30]
[422470253,1778971843000,-516.86,0.00028883,30]
[422470251,1778971843000,-516.27,0.00028852,7]
[422470257,1778971843000,-1402.73,0.00028883,30]
[422470256,1778971843000,-1408.35,0.00028883,30]
[422470255,1778971843000,-374.05,0.00028883,30]
[422470260,1778971843000,-2959.13,0.00028883,30]
[422470261,1778971843000,-516.86,0.00028915,2]
[422470259,1778971843000,-516.27,0.00028883,30]
[422470254,1778971843000,-2970.88,0.00028883,30]
[422470274,1778971843000,-372.97,0.00028947,7]
[422470288,1778971843000,-374.05,0.0002901,2]
[422470269,1778971843000,-516.86,0.00028947,7]
[422470264,1778971843000,-1408.35,0.00028915,2]
[422470273,1778971843000,-1402.73,0.00028947,7]
[422470272,1778971843000,-1408.35,0.00028947,7]
[422470268,1778971843000,-2959.13,0.00028915,2]
[422470270,1778971843000,-374.05,0.00028947,7]
[422470277,1778971843000,-215.03962261,0.00028979,30]
[422470267,1778971843000,-516.27,0.00028915,2]
[422470266,1778971843000,-372.97,0.00028915,2]
[422470265,1778971843000,-1402.73,0.00028915,2]
[422470275,1778971843000,-516.27,0.00028947,7]
[422470263,1778971843000,-2970.88,0.00028915,2]
[422470271,1778971843000,-2970.88,0.00028947,7]
[422470340,1778971844000,-2959.13,0.00029137,7]
[422470341,1778971844000,-516.27,0.00029137,7]
[422470347,1778971844000,-1402.73,0.00029169,30]
[422470346,1778971844000,-372.97,0.00029169,30]
[422470343,1778971844000,-374.05,0.00029169,30]
[422470344,1778971844000,-2970.88,0.00029169,30]
[422470349,1778971844000,-516.27,0.00029169,30]
[422470338,1778971844000,-1402.73,0.00029137,7]
[422470345,1778971844000,-1408.35,0.00029169,30]
[422470342,1778971844000,-516.86,0.00029169,30]
[422470339,1778971844000,-372.97,0.00029137,7]
[422470362,1778971844000,-373.03,0.00029232,7]
[422470351,1778971844000,-374.05,0.00029201,2]
[422470352,1778971844000,-2970.88,0.00029201,2]
[422470353,1778971844000,-1408.35,0.00029201,2]
[422470350,1778971844000,-516.86,0.00029201,2]
[422470354,1778971844000,-372.97,0.00029201,2]
[422470355,1778971844000,-1402.73,0.00029201,2]
[422470356,1778971844000,-2959.13,0.00029201,2]
[422470359,1778971844000,-374.24,0.00029232,7]
[422470360,1778971844000,-2970.88,0.00029232,7]
[422470357,1778971844000,-516.27,0.00029201,2]
[422470334,1778971844000,-516.86,0.00029137,7]
[422470348,1778971844000,-2959.13,0.00029169,30]
[422470333,1778971844000,-2959.13,0.00029105,2]
[422470318,1778971844000,-1408.35,0.00029074,30]
[422470331,1778971844000,-372.97,0.00029105,2]
[422470358,1778971844000,-516.97,0.00029232,7]
[422470312,1778971844000,-372.97,0.00029042,7]
[422470310,1778971844000,-1408.35,0.00029042,7]
[422470309,1778971844000,-2970.88,0.00029042,7]
[422470311,1778971844000,-1402.73,0.00029042,7]
[422470315,1778971844000,-516.86,0.00029074,30]
[422470316,1778971844000,-374.05,0.00029074,30]
[422470314,1778971844000,-516.27,0.00029042,7]
[422470322,1778971844000,-516.27,0.00029074,30]
[422470321,1778971844000,-2959.13,0.00029074,30]
[422470323,1778971844000,-456.6,0.000291,7]
[422470332,1778971844000,-516.27,0.00029105,2]
[422470319,1778971844000,-1402.73,0.00029074,30]
[422470317,1778971844000,-2970.88,0.00029074,30]
[422470324,1778971844000,-1078.25,0.000291,7]
[422470326,1778971844000,-516.86,0.00029105,2]
[422470335,1778971844000,-2970.88,0.00029137,7]
[422470336,1778971844000,-374.05,0.00029137,7]
[422470337,1778971844000,-1408.35,0.00029137,7]
[422470329,1778971844000,-1408.35,0.00029105,2]
[422470330,1778971844000,-1402.73,0.00029105,2]
[422470327,1778971844000,-2970.88,0.00029105,2]
[422470325,1778971844000,-9246.08,0.000291,14]
[422470328,1778971844000,-374.05,0.00029105,2]
[422470320,1778971844000,-372.97,0.00029074,30]
[422470361,1778971844000,-1408.51,0.00029232,7]
[422470313,1778971844000,-2959.13,0.00029042,7]
[422470364,1778971844000,-2959.19,0.00029232,7]
[422470392,1778971844000,-2000.0,0.00029696,2]
[422470397,1778971844000,-150.0,0.00029979,2]
[422470399,1778971844000,-150.0,0.00029979,2]
[422470394,1778971844000,-2000.0,0.00029696,2]
[422470393,1778971844000,-2000.0,0.00029696,2]
[422470396,1778971844000,-150.0,0.00029979,2]
[422470398,1778971844000,-150.0,0.00029979,2]
[422470412,1778971844000,-500.0,0.00029999,2]
[422470402,1778971844000,-150.0,0.00029979,2]
[422470401,1778971844000,-150.0,0.00029979,2]
[422470405,1778971844000,-617.24473084,0.00029999,2]
[422470395,1778971844000,-535.0,0.00029807,4]
[422470406,1778971844000,-500.0,0.00029999,2]
[422470407,1778971844000,-500.0,0.00029999,2]
[422470408,1778971844000,-500.0,0.00029999,2]
[422470409,1778971844000,-500.0,0.00029999,2]
[422470411,1778971844000,-500.0,0.00029999,2]
[422470410,1778971844000,-541.25237338,0.00029999,2]
[422470415,1778971844000,-500.0,0.00029999,2]
[422470413,1778971844000,-261.8291012,0.00029999,2]
[422470417,1778971844000,-500.0,0.00029999,2]
[422470414,1778971844000,-639.29513687,0.00029999,2]
[422470416,1778971844000,-500.0,0.00029999,2]
[422470363,1778971844000,-1402.77,0.00029232,7]
[422470404,1778971844000,-256.0,0.00029979,2]
[422470400,1778971844000,-150.0,0.00029979,2]
[422470403,1778971844000,-150.0,0.00029979,2]
[422470390,1778971844000,-2000.0,0.00029696,2]
[422470391,1778971844000,-2000.0,0.00029696,2]
[422470367,1778971844000,-535.0,0.00029273,4]
[422470377,1778971844000,-2000.0,0.00029296,2]
[422470366,1778971844000,-174.88300058,0.00029258,7]
[422470368,1778971844000,-160.14115886,0.00029285,7]
[422470373,1778971844000,-2000.0,0.00029296,2]
[422470370,1778971844000,-159.83435293,0.00029285,7]
[422470369,1778971844000,-150.24186805,0.00029285,2]
[422470371,1778971844000,-154.57234443,0.00029285,7]
[422470372,1778971844000,-500.0,0.00029288,2]
[422470375,1778971844000,-2000.0,0.00029296,2]
[422470374,1778971844000,-2000.0,0.00029296,2]
[422470376,1778971844000,-2000.0,0.00029296,2]
[422470365,1778971844000,-516.35,0.00029232,7]
[422470379,1778971844000,-550.0,0.00029313,2]
[422470381,1778971844000,-550.0,0.00029313,2]
[422470384,1778971844000,-550.0,0.00029313,2]
[422470385,1778971844000,-550.0,0.00029313,2]
[422470388,1778971844000,-150.0,0.00029534,2]
[422470380,1778971844000,-550.0,0.00029313,2]
[422470383,1778971844000,-550.0,0.00029313,2]
[422470387,1778971844000,-536.0,0.00029313,2]
[422470382,1778971844000,-550.0,0.00029313,2]
[422470378,1778971844000,-550.0,0.00029313,2]
[422470389,1778971844000,-9527.3414012,0.0002967,2]
[422470386,1778971844000,-550.0,0.00029313,2]
[422470454,1778971845000,-833.26872616,0.00030137,30]
[422470460,1778971845000,-250.0,0.0003019,30]
[422470456,1778971845000,-152.0,0.00030176,30]
[422470455,1778971845000,-418.0,0.00030176,30]
[422470457,1778971845000,-206.0,0.00030182,30]
[422470450,1778971845000,-679.41,0.00030137,2]
[422470452,1778971845000,-360.36,0.00030137,2]
[422470453,1778971845000,-1922.97,0.00030137,30]
[422470451,1778971845000,-200.0,0.00030137,2]
[422470462,1778971845000,-250.0,0.0003019,30]
[422470459,1778971845000,-250.0,0.0003019,30]
[422470458,1778971845000,-151.0,0.00030184,30]
[422470472,1778971845000,-436.0,0.0003019,30]
[422470469,1778971845000,-3000.0,0.0003019,30]
[422470463,1778971845000,-371.0,0.0003019,30]
[422470464,1778971845000,-3000.0,0.0003019,30]
[422470465,1778971845000,-3000.0,0.0003019,30]
[422470470,1778971845000,-666.0,0.0003019,30]
[422470449,1778971845000,-600.73407741,0.000301,2]
[422470466,1778971845000,-3000.0,0.0003019,30]
[422470471,1778971845000,-153.0,0.0003019,30]
[422470467,1778971845000,-3000.0,0.0003019,30]
[422470468,1778971845000,-3000.0,0.0003019,30]
[422470484,1778971845000,-319.66870586,0.00030647,7]
[422470474,1778971845000,-164.0,0.0003019,30]
[422470473,1778971845000,-191.0,0.0003019,30]
[422470475,1778971845000,-155.0,0.0003019,30]
[422470461,1778971845000,-250.0,0.0003019,30]
[422470448,1778971845000,-600.73407741,0.000301,2]
[422470422,1778971845000,-500.0,0.00029999,2]
[422470445,1778971845000,-815.03044835,0.000301,2]
[422470419,1778971845000,-500.0,0.00029999,2]
[422470420,1778971845000,-500.0,0.00029999,2]
[422470482,1778971845000,-320.28231772,0.00030647,7]
[422470421,1778971845000,-500.0,0.00029999,2]
[422470423,1778971845000,-500.0,0.00029999,2]
[422470425,1778971845000,-500.0,0.00029999,2]
[422470424,1778971845000,-500.0,0.00029999,2]
[422470433,1778971845000,-1250.0,0.00030001,2]
[422470427,1778971845000,-500.0,0.00029999,2]
[422470431,1778971845000,-208.44072055,0.0003,30]
[422470430,1778971845000,-650.0,0.0003,2]
[422470428,1778971845000,-500.0,0.00029999,2]
[422470426,1778971845000,-500.0,0.00029999,2]
[422470429,1778971845000,-600.0,0.00029999,2]
[422470434,1778971845000,-1250.0,0.00030001,2]
[422470432,1778971845000,-1250.0,0.00030001,2]
[422470436,1778971845000,-1250.0,0.00030001,2]
[422470446,1778971845000,-815.03044835,0.000301,2]
[422470447,1778971845000,-600.73407744,0.000301,2]
[422470438,1778971845000,-1250.0,0.00030001,2]
[422470440,1778971845000,-1250.0,0.00030001,2]
[422470437,1778971845000,-1250.0,0.00030001,2]
[422470443,1778971845000,-1147.32,0.000301,7]
[422470444,1778971845000,-815.03044835,0.000301,2]
[422470441,1778971845000,-1155.0,0.00030001,2]
[422470442,1778971845000,-2917.0,0.000301,7]
[422470435,1778971845000,-1250.0,0.00030001,2]
[422470439,1778971845000,-1250.0,0.00030001,2]
[422470476,1778971845000,-1801.62,0.000302,2]
[422470418,1778971845000,-500.0,0.00029999,2]
[422470480,1778971845000,-159.11707341,0.00030631,7]
[422470509,1778971845000,-351.0,0.0003119,30]
[422470521,1778971845000,-1000.0,0.000315,7]
[422470511,1778971845000,-214.0,0.0003119,30]
[422470512,1778971845000,-666.0,0.0003119,30]
[422470513,1778971845000,-153.0,0.0003119,30]
[422470514,1778971845000,-436.0,0.0003119,30]
[422470517,1778971845000,-155.0,0.0003119,30]
[422470516,1778971845000,-164.0,0.0003119,30]
[422470515,1778971845000,-191.0,0.0003119,30]
[422470518,1778971845000,-180.48177615,0.00031276,7]
[422470519,1778971845000,-33698.0,0.000313,2]
[422470523,1778971845000,-206.13548185,0.00031528,7]
[422470534,1778971845000,-450.72560416,0.00031556,2]
[422470524,1778971845000,-207.56855496,0.00031528,7]
[422470526,1778971845000,-524.64900173,0.00031528,7]
[422470528,1778971845000,-318.23414683,0.00031539,7]
[422470527,1778971845000,-248.18147068,0.00031528,7]
[422470530,1778971845000,-480.42347659,0.00031556,7]
[422470525,1778971845000,-241.24251113,0.00031528,7]
[422470529,1778971845000,-317.63645987,0.00031539,7]
[422470531,1778971845000,-204.48407923,0.00031556,7]
[422470533,1778971845000,-289.09716566,0.00031556,7]
[422470532,1778971845000,-200.25692844,0.00031556,7]
[422470537,1778971845000,-463.71703329,0.00031556,7]
[422470539,1778971845000,-267.32207255,0.00031556,7]
[422470538,1778971845000,-173.94009359,0.00031556,7]
[422470536,1778971845000,-226.40460047,0.00031556,7]
[422470522,1778971845000,-833.26872616,0.00031507,30]
[422470520,1778971845000,-535.0,0.00031409,6]
[422470535,1778971845000,-479.5030588,0.00031556,7]
[422470501,1778971845000,-160.81567875,0.00031176,30]
[422470510,1778971845000,-150.0,0.0003119,30]
[422470479,1778971845000,-349.76600115,0.0003062,7]
[422470477,1778971845000,-914.9,0.00030239,2]
[422470483,1778971845000,-300.48373611,0.00030647,2]
[422470481,1778971845000,-158.81822993,0.00030631,7]
[422470485,1778971845000,-309.14468886,0.00030647,7]
[422470487,1778971845000,-230.02,0.00030654,120]
[422470488,1778971845000,-5000.0,0.00030654,120]
[422470486,1778971845000,-156.33367028,0.00030647,7]
[422470491,1778971845000,-160.59,0.00030712,120]
[422470495,1778971845000,-152.0,0.00030866,7]
[422470489,1778971845000,-5000.0,0.00030654,120]
[422470493,1778971845000,-1078.25,0.000308,7]
[422470492,1778971845000,-456.6,0.000308,7]
[422470478,1778971845000,-535.0,0.00030341,5]
[422470496,1778971845000,-535.0,0.00030875,6]
[422470490,1778971845000,-5000.0,0.00030654,120]
[422470504,1778971845000,-550.0,0.0003119,30]
[422470507,1778971845000,-550.0,0.0003119,30]
[422470506,1778971845000,-550.0,0.0003119,30]
[422470502,1778971845000,-206.0,0.00031182,30]
[422470505,1778971845000,-550.0,0.0003119,30]
[422470498,1778971845000,-253.64,0.00031096,2]
[422470494,1778971845000,-9246.08,0.000308,14]
[422470500,1778971845000,-418.0,0.00031176,30]
[422470503,1778971845000,-151.0,0.00031184,30]
[422470497,1778971845000,-150.0,0.00031011,2]
[422470499,1778971845000,-200.0,0.00031096,2]
[422470508,1778971845000,-550.0,0.0003119,30]
[422470569,1778971846000,-699.5320023,0.00032133,7]
[422470578,1778971846000,-157.44591693,0.00032145,7]
[422470571,1778971846000,-496.36294136,0.00032133,7]
[422470583,1778971846000,-150.0,0.00032162,7]
[422470574,1778971846000,-303.98551273,0.00032133,7]
[422470582,1778971846000,-476.4546898,0.00032145,7]